Workbook

Sheet Receitas (Vendas)
B1: Doze meses | AD1: Nome da Empresa
B2: PROJEÇÃO DE LUCROS E PERDAS | AB2: INÍCIO DO ANO FISCAL: | AC2: JAN | AD2: =YEAR(TODAY()) -> 2018
D3: =UPPER(TEXT(DATE(AnoInícioAF,NúmMêsAF,1),"mmm-aa")) -> JAN-18 | E3: =UPPER(TEXT(DATE(AnoInícioAF,NúmMêsAF+1,1),"mmm-aa")) -> FEV-18 | F3: =UPPER(TEXT(DATE(AnoInícioAF,NúmMêsAF+2,1),"mmm-aa")) -> MAR-18 | G3: =UPPER(TEXT(DATE(AnoInícioAF,NúmMêsAF+3,1),"mmm-aa")) -> ABR-18 | H3: =UPPER(TEXT(DATE(AnoInícioAF,NúmMêsAF+4,1),"mmm-aa")) -> MAI-18 | I3: =UPPER(TEXT(DATE(AnoInícioAF,NúmMêsAF+5,1),"mmm-aa")) -> JUN-18 | J3: =UPPER(TEXT(DATE(AnoInícioAF,NúmMêsAF+6,1),"mmm-aa")) -> JUL-18 | K3: =UPPER(TEXT(DATE(AnoInícioAF,NúmMêsAF+7,1),"mmm-aa")) -> AGO-18 | L3: =UPPER(TEXT(DATE(AnoInícioAF,NúmMêsAF+8,1),"mmm-aa")) -> SET-18 | M3: =UPPER(TEXT(DATE(AnoInícioAF,NúmMêsAF+9,1),"mmm-aa")) -> OUT-18 | N3: =UPPER(TEXT(DATE(AnoInícioAF,NúmMêsAF+10,1),"mmm-aa")) -> NOV-18 | O3: =UPPER(TEXT(DATE(AnoInícioAF,NúmMêsAF+11,1),"mmm-aa")) -> DEZ-18 | P3: ANUALMENTE | Q3: ÍND % | R3: =LEFT(D3,3)&" %" -> JAN % | S3: =LEFT(E3,3)&" %" -> FEV % | T3: MAR % | U3: ABR % | V3: MAI % | W3: JUN % | X3: JUL % | Y3: AGO % | Z3: SET % | AA3: OUT % | AB3: NOV % | AC3: DEZ % | AD3: ANO %
B4: RECEITAS (VENDAS) | C4: TENDÊNCIA | D4: Jan | E4: Fev | F4: Mar | G4: Abr | H4: Mai | I4: Jun | J4: Jul | K4: Ago | L4: Set | M4: Out | N4: Nov | O4: Dez | P4: Anualmente | Q4: Índice % | R4: Jan % | S4: Fev % | T4: Mar % | U4: Abr % | V4: Mai % | W4: Jun % | X4: Jul % | Y4: Ago % | Z4: Set % | AA4: Out % | AB4: Nov % | AC4: Dez % | AD4: Ano %
B5: Receita 1 | D5: R$ 186 | E5: R$ 108 | F5: R$ 92 | G5: R$ 122 | H5: R$ 190 | I5: R$ 71 | J5: R$ 21 | K5: R$ 37 | L5: R$ 24 | M5: R$ 178 | N5: R$ 92 | O5: R$ 97 | P5: =SUM(Receita[[#This Row],[Jan]:[Dez]]) -> R$ 1,218 | Q5: 12% | R5: =IFERROR(Receita[[#This Row],[Jan]]/Receita[[#Totals],[Jan]],"-") -> 30% | S5: =IFERROR(Receita[[#This Row],[Fev]]/Receita[[#Totals],[Fev]],"-") -> 15% | T5: =IFERROR(Receita[[#This Row],[Mar]]/Receita[[#Totals],[Mar]],"-") -> 11% | U5: =IFERROR(Receita[[#This Row],[Abr]]/Receita[[#Totals],[Abr]],"-") -> 20% | V5: =IFERROR(Receita[[#This Row],[Mai]]/Receita[[#Totals],[Mai]],"-") -> 23% | W5: =IFERROR(Receita[[#This Row],[Jun]]/Receita[[#Totals],[Jun]],"-") -> 12% | X5: =IFERROR(Receita[[#This Row],[Jul]]/Receita[[#Totals],[Jul]],"-") -> 4% | Y5: =IFERROR(Receita[[#This Row],[Ago]]/Receita[[#Totals],[Ago]],"-") -> 5% | Z5: =IFERROR(Receita[[#This Row],[Set]]/Receita[[#Totals],[Set]],"-") -> 3% | AA5: =IFERROR(Receita[[#This Row],[Out]]/Receita[[#Totals],[Out]],"-") -> 26% | AB5: =IFERROR(Receita[[#This Row],[Nov]]/Receita[[#Totals],[Nov]],"-") -> 12% | AC5: =IFERROR(Receita[[#This Row],[Dez]]/Receita[[#Totals],[Dez]],"-") -> 9% | AD5: =IFERROR(Receita[[#This Row],[Anualmente]]/Receita[[#Totals],[Anualmente]],"-") -> 14%
B6: Receita 2 | D6: R$ 15 | E6: R$ 16 | F6: R$ 198 | G6: R$ 44 | H6: R$ 25 | I6: R$ 68 | J6: R$ 43 | K6: R$ 119 | L6: R$ 37 | M6: R$ 118 | N6: R$ 29 | O6: R$ 171 | P6: =SUM(Receita[[#This Row],[Jan]:[Dez]]) -> R$ 883 | Q6: 18% | R6: =IFERROR(Receita[[#This Row],[Jan]]/Receita[[#Totals],[Jan]],"-") -> 2% | S6: =IFERROR(Receita[[#This Row],[Fev]]/Receita[[#Totals],[Fev]],"-") -> 2% | T6: =IFERROR(Receita[[#This Row],[Mar]]/Receita[[#Totals],[Mar]],"-") -> 24% | U6: =IFERROR(Receita[[#This Row],[Abr]]/Receita[[#Totals],[Abr]],"-") -> 7% | V6: =IFERROR(Receita[[#This Row],[Mai]]/Receita[[#Totals],[Mai]],"-") -> 3% | W6: =IFERROR(Receita[[#This Row],[Jun]]/Receita[[#Totals],[Jun]],"-") -> 12% | X6: =IFERROR(Receita[[#This Row],[Jul]]/Receita[[#Totals],[Jul]],"-") -> 7% | Y6: =IFERROR(Receita[[#This Row],[Ago]]/Receita[[#Totals],[Ago]],"-") -> 18% | Z6: =IFERROR(Receita[[#This Row],[Set]]/Receita[[#Totals],[Set]],"-") -> 5% | AA6: =IFERROR(Receita[[#This Row],[Out]]/Receita[[#Totals],[Out]],"-") -> 17% | AB6: =IFERROR(Receita[[#This Row],[Nov]]/Receita[[#Totals],[Nov]],"-") -> 4% | AC6: =IFERROR(Receita[[#This Row],[Dez]]/Receita[[#Totals],[Dez]],"-") -> 16% | AD6: =IFERROR(Receita[[#This Row],[Anualmente]]/Receita[[#Totals],[Anualmente]],"-") -> 10%
B7: Receita 3 | D7: R$ 166 | E7: R$ 185 | F7: R$ 89 | G7: R$ 170 | H7: R$ 131 | I7: R$ 70 | J7: R$ 50 | K7: R$ 149 | L7: R$ 179 | M7: R$ 104 | N7: R$ 119 | O7: R$ 187 | P7: =SUM(Receita[[#This Row],[Jan]:[Dez]]) -> R$ 1,599 | Q7: 19% | R7: =IFERROR(Receita[[#This Row],[Jan]]/Receita[[#Totals],[Jan]],"-") -> 27% | S7: =IFERROR(Receita[[#This Row],[Fev]]/Receita[[#Totals],[Fev]],"-") -> 25% | T7: =IFERROR(Receita[[#This Row],[Mar]]/Receita[[#Totals],[Mar]],"-") -> 11% | U7: =IFERROR(Receita[[#This Row],[Abr]]/Receita[[#Totals],[Abr]],"-") -> 28% | V7: =IFERROR(Receita[[#This Row],[Mai]]/Receita[[#Totals],[Mai]],"-") -> 16% | W7: =IFERROR(Receita[[#This Row],[Jun]]/Receita[[#Totals],[Jun]],"-") -> 12% | X7: =IFERROR(Receita[[#This Row],[Jul]]/Receita[[#Totals],[Jul]],"-") -> 8% | Y7: =IFERROR(Receita[[#This Row],[Ago]]/Receita[[#Totals],[Ago]],"-") -> 22% | Z7: =IFERROR(Receita[[#This Row],[Set]]/Receita[[#Totals],[Set]],"-") -> 24% | AA7: =IFERROR(Receita[[#This Row],[Out]]/Receita[[#Totals],[Out]],"-") -> 15% | AB7: =IFERROR(Receita[[#This Row],[Nov]]/Receita[[#Totals],[Nov]],"-") -> 16% | AC7: =IFERROR(Receita[[#This Row],[Dez]]/Receita[[#Totals],[Dez]],"-") -> 18% | AD7: =IFERROR(Receita[[#This Row],[Anualmente]]/Receita[[#Totals],[Anualmente]],"-") -> 18%
B8: Receita 4 | D8: R$ 21 | E8: R$ 113 | F8: R$ 83 | G8: R$ 17 | H8: R$ 130 | I8: R$ 26 | J8: R$ 167 | K8: R$ 102 | L8: R$ 82 | M8: R$ 33 | N8: R$ 88 | O8: R$ 193 | P8: =SUM(Receita[[#This Row],[Jan]:[Dez]]) -> R$ 1,055 | Q8: 11% | R8: =IFERROR(Receita[[#This Row],[Jan]]/Receita[[#Totals],[Jan]],"-") -> 3% | S8: =IFERROR(Receita[[#This Row],[Fev]]/Receita[[#Totals],[Fev]],"-") -> 15% | T8: =IFERROR(Receita[[#This Row],[Mar]]/Receita[[#Totals],[Mar]],"-") -> 10% | U8: =IFERROR(Receita[[#This Row],[Abr]]/Receita[[#Totals],[Abr]],"-") -> 3% | V8: =IFERROR(Receita[[#This Row],[Mai]]/Receita[[#Totals],[Mai]],"-") -> 16% | W8: =IFERROR(Receita[[#This Row],[Jun]]/Receita[[#Totals],[Jun]],"-") -> 4% | X8: =IFERROR(Receita[[#This Row],[Jul]]/Receita[[#Totals],[Jul]],"-") -> 28% | Y8: =IFERROR(Receita[[#This Row],[Ago]]/Receita[[#Totals],[Ago]],"-") -> 15% | Z8: =IFERROR(Receita[[#This Row],[Set]]/Receita[[#Totals],[Set]],"-") -> 11% | AA8: =IFERROR(Receita[[#This Row],[Out]]/Receita[[#Totals],[Out]],"-") -> 5% | AB8: =IFERROR(Receita[[#This Row],[Nov]]/Receita[[#Totals],[Nov]],"-") -> 12% | AC8: =IFERROR(Receita[[#This Row],[Dez]]/Receita[[#Totals],[Dez]],"-") -> 19% | AD8: =IFERROR(Receita[[#This Row],[Anualmente]]/Receita[[#Totals],[Anualmente]],"-") -> 12%
B9: Receita 5 | D9: R$ 70 | E9: R$ 160 | F9: R$ 125 | G9: R$ 84 | H9: R$ 191 | I9: R$ 97 | J9: R$ 52 | K9: R$ 45 | L9: R$ 173 | M9: R$ 136 | N9: R$ 144 | O9: R$ 167 | P9: =SUM(Receita[[#This Row],[Jan]:[Dez]]) -> R$ 1,444 | Q9: 20% | R9: =IFERROR(Receita[[#This Row],[Jan]]/Receita[[#Totals],[Jan]],"-") -> 11% | S9: =IFERROR(Receita[[#This Row],[Fev]]/Receita[[#Totals],[Fev]],"-") -> 22% | T9: =IFERROR(Receita[[#This Row],[Mar]]/Receita[[#Totals],[Mar]],"-") -> 15% | U9: =IFERROR(Receita[[#This Row],[Abr]]/Receita[[#Totals],[Abr]],"-") -> 14% | V9: =IFERROR(Receita[[#This Row],[Mai]]/Receita[[#Totals],[Mai]],"-") -> 24% | W9: =IFERROR(Receita[[#This Row],[Jun]]/Receita[[#Totals],[Jun]],"-") -> 17% | X9: =IFERROR(Receita[[#This Row],[Jul]]/Receita[[#Totals],[Jul]],"-") -> 9% | Y9: =IFERROR(Receita[[#This Row],[Ago]]/Receita[[#Totals],[Ago]],"-") -> 7% | Z9: =IFERROR(Receita[[#This Row],[Set]]/Receita[[#Totals],[Set]],"-") -> 23% | AA9: =IFERROR(Receita[[#This Row],[Out]]/Receita[[#Totals],[Out]],"-") -> 20% | AB9: =IFERROR(Receita[[#This Row],[Nov]]/Receita[[#Totals],[Nov]],"-") -> 19% | AC9: =IFERROR(Receita[[#This Row],[Dez]]/Receita[[#Totals],[Dez]],"-") -> 16% | AD9: =IFERROR(Receita[[#This Row],[Anualmente]]/Receita[[#Totals],[Anualmente]],"-") -> 17%
B10: Receita 6 | D10: R$ 61 | E10: R$ 99 | F10: R$ 70 | G10: R$ 162 | H10: R$ 28 | I10: R$ 163 | J10: R$ 101 | K10: R$ 103 | L10: R$ 78 | M10: R$ 33 | N10: R$ 162 | O10: R$ 159 | P10: =SUM(Receita[[#This Row],[Jan]:[Dez]]) -> R$ 1,219 | Q10: 10% | R10: =IFERROR(Receita[[#This Row],[Jan]]/Receita[[#Totals],[Jan]],"-") -> 10% | S10: =IFERROR(Receita[[#This Row],[Fev]]/Receita[[#Totals],[Fev]],"-") -> 13% | T10: =IFERROR(Receita[[#This Row],[Mar]]/Receita[[#Totals],[Mar]],"-") -> 9% | U10: =IFERROR(Receita[[#This Row],[Abr]]/Receita[[#Totals],[Abr]],"-") -> 27% | V10: =IFERROR(Receita[[#This Row],[Mai]]/Receita[[#Totals],[Mai]],"-") -> 3% | W10: =IFERROR(Receita[[#This Row],[Jun]]/Receita[[#Totals],[Jun]],"-") -> 28% | X10: =IFERROR(Receita[[#This Row],[Jul]]/Receita[[#Totals],[Jul]],"-") -> 17% | Y10: =IFERROR(Receita[[#This Row],[Ago]]/Receita[[#Totals],[Ago]],"-") -> 15% | Z10: =IFERROR(Receita[[#This Row],[Set]]/Receita[[#Totals],[Set]],"-") -> 10% | AA10: =IFERROR(Receita[[#This Row],[Out]]/Receita[[#Totals],[Out]],"-") -> 5% | AB10: =IFERROR(Receita[[#This Row],[Nov]]/Receita[[#Totals],[Nov]],"-") -> 22% | AC10: =IFERROR(Receita[[#This Row],[Dez]]/Receita[[#Totals],[Dez]],"-") -> 15% | AD10: =IFERROR(Receita[[#This Row],[Anualmente]]/Receita[[#Totals],[Anualmente]],"-") -> 14%
B11: Receita 7 | D11: R$ 105 | E11: R$ 55 | F11: R$ 163 | G11: R$ 12 | H11: R$ 117 | I11: R$ 83 | J11: R$ 163 | K11: R$ 120 | L11: R$ 171 | M11: R$ 79 | N11: R$ 105 | O11: R$ 69 | P11: =SUM(Receita[[#This Row],[Jan]:[Dez]]) -> R$ 1,242 | Q11: 10% | R11: =IFERROR(Receita[[#This Row],[Jan]]/Receita[[#Totals],[Jan]],"-") -> 17% | S11: =IFERROR(Receita[[#This Row],[Fev]]/Receita[[#Totals],[Fev]],"-") -> 7% | T11: =IFERROR(Receita[[#This Row],[Mar]]/Receita[[#Totals],[Mar]],"-") -> 20% | U11: =IFERROR(Receita[[#This Row],[Abr]]/Receita[[#Totals],[Abr]],"-") -> 2% | V11: =IFERROR(Receita[[#This Row],[Mai]]/Receita[[#Totals],[Mai]],"-") -> 14% | W11: =IFERROR(Receita[[#This Row],[Jun]]/Receita[[#Totals],[Jun]],"-") -> 14% | X11: =IFERROR(Receita[[#This Row],[Jul]]/Receita[[#Totals],[Jul]],"-") -> 27% | Y11: =IFERROR(Receita[[#This Row],[Ago]]/Receita[[#Totals],[Ago]],"-") -> 18% | Z11: =IFERROR(Receita[[#This Row],[Set]]/Receita[[#Totals],[Set]],"-") -> 23% | AA11: =IFERROR(Receita[[#This Row],[Out]]/Receita[[#Totals],[Out]],"-") -> 12% | AB11: =IFERROR(Receita[[#This Row],[Nov]]/Receita[[#Totals],[Nov]],"-") -> 14% | AC11: =IFERROR(Receita[[#This Row],[Dez]]/Receita[[#Totals],[Dez]],"-") -> 7% | AD11: =IFERROR(Receita[[#This Row],[Anualmente]]/Receita[[#Totals],[Anualmente]],"-") -> 14%
B12: TOTAL DE VENDAS | D12: =SUBTOTAL(109,Receita[Jan]) -> R$ 624 | E12: =SUBTOTAL(109,Receita[Fev]) -> R$ 736 | F12: =SUBTOTAL(109,Receita[Mar]) -> R$ 820 | G12: =SUBTOTAL(109,Receita[Abr]) -> R$ 611 | H12: =SUBTOTAL(109,Receita[Mai]) -> R$ 812 | I12: =SUBTOTAL(109,Receita[Jun]) -> R$ 578 | J12: =SUBTOTAL(109,Receita[Jul]) -> R$ 597 | K12: =SUBTOTAL(109,Receita[Ago]) -> R$ 675 | L12: =SUBTOTAL(109,Receita[Set]) -> R$ 744 | M12: =SUBTOTAL(109,Receita[Out]) -> R$ 681 | N12: =SUBTOTAL(109,Receita[Nov]) -> R$ 739 | O12: =SUBTOTAL(109,Receita[Dez]) -> R$ 1,043 | P12: =SUBTOTAL(109,Receita[Anualmente]) -> R$ 8,660 | Q12: =SUBTOTAL(109,Receita[Índice %]) -> 100% | R12: =SUBTOTAL(109,Receita[Jan %]) -> 100% | S12: =SUBTOTAL(109,Receita[Fev %]) -> 100% | T12: =SUBTOTAL(109,Receita[Mar %]) -> 100% | U12: =SUBTOTAL(109,Receita[Abr %]) -> 100% | V12: =SUBTOTAL(109,Receita[Mai %]) -> 100% | W12: =SUBTOTAL(109,Receita[Jun %]) -> 100% | X12: =SUBTOTAL(109,Receita[Jul %]) -> 100% | Y12: =SUBTOTAL(109,Receita[Ago %]) -> 100% | Z12: =SUBTOTAL(109,Receita[Set %]) -> 100% | AA12: =SUBTOTAL(109,Receita[Out %]) -> 100% | AB12: =SUBTOTAL(109,Receita[Nov %]) -> 100% | AC12: =SUBTOTAL(109,Receita[Dez %]) -> 100% | AD12: =SUBTOTAL(109,Receita[Ano %]) -> 100%

Sheet Custo de vendas
B1: =Título_Período_Projeção -> Doze meses | AD1: =Nome_Empresa -> Nome da Empresa
B2: =Título_Planilha -> PROJEÇÃO DE LUCROS E PERDAS | AB2: ANO FISCAL: | AC2: =InícioMêsAF -> JAN | AD2: =AnoInícioAF -> 2018
D3: =UPPER(TEXT(DATE(AnoInícioAF,NúmMêsAF,1),"mmm-aa")) -> JAN-18 | E3: =UPPER(TEXT(DATE(AnoInícioAF,NúmMêsAF+1,1),"mmm-aa")) -> FEV-18 | F3: =UPPER(TEXT(DATE(AnoInícioAF,NúmMêsAF+2,1),"mmm-aa")) -> MAR-18 | G3: =UPPER(TEXT(DATE(AnoInícioAF,NúmMêsAF+3,1),"mmm-aa")) -> ABR-18 | H3: =UPPER(TEXT(DATE(AnoInícioAF,NúmMêsAF+4,1),"mmm-aa")) -> MAI-18 | I3: =UPPER(TEXT(DATE(AnoInícioAF,NúmMêsAF+5,1),"mmm-aa")) -> JUN-18 | J3: =UPPER(TEXT(DATE(AnoInícioAF,NúmMêsAF+6,1),"mmm-aa")) -> JUL-18 | K3: =UPPER(TEXT(DATE(AnoInícioAF,NúmMêsAF+7,1),"mmm-aa")) -> AGO-18 | L3: =UPPER(TEXT(DATE(AnoInícioAF,NúmMêsAF+8,1),"mmm-aa")) -> SET-18 | M3: =UPPER(TEXT(DATE(AnoInícioAF,NúmMêsAF+9,1),"mmm-aa")) -> OUT-18 | N3: =UPPER(TEXT(DATE(AnoInícioAF,NúmMêsAF+10,1),"mmm-aa")) -> NOV-18 | O3: =UPPER(TEXT(DATE(AnoInícioAF,NúmMêsAF+11,1),"mmm-aa")) -> DEZ-18 | P3: ANUALMENTE | Q3: ÍND % | R3: =LEFT(D3,3)&" %" -> JAN % | S3: =LEFT(E3,3)&" %" -> FEV % | T3: MAR % | U3: ABR % | V3: MAI % | W3: JUN % | X3: JUL % | Y3: AGO % | Z3: SET % | AA3: OUT % | AB3: NOV % | AC3: DEZ % | AD3: ANO %
B4: CUSTO DE VENDAS | C4: TENDÊNCIA | D4: Jan | E4: Fev | F4: Mar | G4: Abr | H4: Mai | I4: Jun | J4: Jul | K4: Ago | L4: Set | M4: Out | N4: Nov | O4: Dez | P4: Anualmente | Q4: Índice % | R4: Jan % | S4: Fev % | T4: Mar % | U4: Abr % | V4: Mai % | W4: Jun % | X4: Jul % | Y4: Ago % | Z4: Set % | AA4: Out % | AB4: Nov % | AC4: Dez % | AD4: Ano %
B5: Custo 1 | D5: R$ 61 | E5: R$ 78 | F5: R$ 65 | G5: R$ 29 | H5: R$ 125 | I5: R$ 49 | J5: R$ 14 | K5: R$ 26 | L5: R$ 14 | M5: R$ 129 | N5: R$ 60 | O5: R$ 65 | P5: =SUM(CustodeVendas[[#This Row],[Jan]:[Dez]]) -> R$ 715 | Q5: 12% | R5: =IFERROR(CustodeVendas[[#This Row],[Jan]]/CustodeVendas[[#Totals],[Jan]],"-") -> 23% | S5: =IFERROR(CustodeVendas[[#This Row],[Fev]]/CustodeVendas[[#Totals],[Fev]],"-") -> 22% | T5: =IFERROR(CustodeVendas[[#This Row],[Mar]]/CustodeVendas[[#Totals],[Mar]],"-") -> 21% | U5: =IFERROR(CustodeVendas[[#This Row],[Abr]]/CustodeVendas[[#Totals],[Abr]],"-") -> 12% | V5: =IFERROR(CustodeVendas[[#This Row],[Mai]]/CustodeVendas[[#Totals],[Mai]],"-") -> 31% | W5: =IFERROR(CustodeVendas[[#This Row],[Jun]]/CustodeVendas[[#Totals],[Jun]],"-") -> 16% | X5: =IFERROR(CustodeVendas[[#This Row],[Jul]]/CustodeVendas[[#Totals],[Jul]],"-") -> 5% | Y5: =IFERROR(CustodeVendas[[#This Row],[Ago]]/CustodeVendas[[#Totals],[Ago]],"-") -> 12% | Z5: =IFERROR(CustodeVendas[[#This Row],[Set]]/CustodeVendas[[#Totals],[Set]],"-") -> 3% | AA5: =IFERROR(CustodeVendas[[#This Row],[Out]]/CustodeVendas[[#Totals],[Out]],"-") -> 47% | AB5: =IFERROR(CustodeVendas[[#This Row],[Nov]]/CustodeVendas[[#Totals],[Nov]],"-") -> 23% | AC5: =IFERROR(CustodeVendas[[#This Row],[Dez]]/CustodeVendas[[#Totals],[Dez]],"-") -> 14% | AD5: =IFERROR(CustodeVendas[[#This Row],[Anualmente]]/CustodeVendas[[#Totals],[Anualmente]],"-") -> 19%
B6: Custo 2 | D6: R$ 7 | E6: R$ 5 | F6: R$ 69 | G6: R$ 32 | H6: R$ 11 | I6: R$ 30 | J6: R$ 27 | K6: R$ 32 | L6: R$ 10 | M6: R$ 41 | N6: R$ 13 | O6: R$ 105 | P6: =SUM(CustodeVendas[[#This Row],[Jan]:[Dez]]) -> R$ 382 | Q6: 18% | R6: =IFERROR(CustodeVendas[[#This Row],[Jan]]/CustodeVendas[[#Totals],[Jan]],"-") -> 3% | S6: =IFERROR(CustodeVendas[[#This Row],[Fev]]/CustodeVendas[[#Totals],[Fev]],"-") -> 1% | T6: =IFERROR(CustodeVendas[[#This Row],[Mar]]/CustodeVendas[[#Totals],[Mar]],"-") -> 22% | U6: =IFERROR(CustodeVendas[[#This Row],[Abr]]/CustodeVendas[[#Totals],[Abr]],"-") -> 13% | V6: =IFERROR(CustodeVendas[[#This Row],[Mai]]/CustodeVendas[[#Totals],[Mai]],"-") -> 3% | W6: =IFERROR(CustodeVendas[[#This Row],[Jun]]/CustodeVendas[[#Totals],[Jun]],"-") -> 10% | X6: =IFERROR(CustodeVendas[[#This Row],[Jul]]/CustodeVendas[[#Totals],[Jul]],"-") -> 9% | Y6: =IFERROR(CustodeVendas[[#This Row],[Ago]]/CustodeVendas[[#Totals],[Ago]],"-") -> 14% | Z6: =IFERROR(CustodeVendas[[#This Row],[Set]]/CustodeVendas[[#Totals],[Set]],"-") -> 2% | AA6: =IFERROR(CustodeVendas[[#This Row],[Out]]/CustodeVendas[[#Totals],[Out]],"-") -> 15% | AB6: =IFERROR(CustodeVendas[[#This Row],[Nov]]/CustodeVendas[[#Totals],[Nov]],"-") -> 5% | AC6: =IFERROR(CustodeVendas[[#This Row],[Dez]]/CustodeVendas[[#Totals],[Dez]],"-") -> 23% | AD6: =IFERROR(CustodeVendas[[#This Row],[Anualmente]]/CustodeVendas[[#Totals],[Anualmente]],"-") -> 10%
B7: Custo 3 | D7: R$ 99 | E7: R$ 95 | F7: R$ 51 | G7: R$ 90 | H7: R$ 21 | I7: R$ 34 | J7: R$ 30 | K7: R$ 24 | L7: R$ 109 | M7: R$ 16 | N7: R$ 21 | O7: R$ 52 | P7: =SUM(CustodeVendas[[#This Row],[Jan]:[Dez]]) -> R$ 642 | Q7: 19% | R7: =IFERROR(CustodeVendas[[#This Row],[Jan]]/CustodeVendas[[#Totals],[Jan]],"-") -> 37% | S7: =IFERROR(CustodeVendas[[#This Row],[Fev]]/CustodeVendas[[#Totals],[Fev]],"-") -> 27% | T7: =IFERROR(CustodeVendas[[#This Row],[Mar]]/CustodeVendas[[#Totals],[Mar]],"-") -> 16% | U7: =IFERROR(CustodeVendas[[#This Row],[Abr]]/CustodeVendas[[#Totals],[Abr]],"-") -> 37% | V7: =IFERROR(CustodeVendas[[#This Row],[Mai]]/CustodeVendas[[#Totals],[Mai]],"-") -> 5% | W7: =IFERROR(CustodeVendas[[#This Row],[Jun]]/CustodeVendas[[#Totals],[Jun]],"-") -> 11% | X7: =IFERROR(CustodeVendas[[#This Row],[Jul]]/CustodeVendas[[#Totals],[Jul]],"-") -> 10% | Y7: =IFERROR(CustodeVendas[[#This Row],[Ago]]/CustodeVendas[[#Totals],[Ago]],"-") -> 11% | Z7: =IFERROR(CustodeVendas[[#This Row],[Set]]/CustodeVendas[[#Totals],[Set]],"-") -> 26% | AA7: =IFERROR(CustodeVendas[[#This Row],[Out]]/CustodeVendas[[#Totals],[Out]],"-") -> 6% | AB7: =IFERROR(CustodeVendas[[#This Row],[Nov]]/CustodeVendas[[#Totals],[Nov]],"-") -> 8% | AC7: =IFERROR(CustodeVendas[[#This Row],[Dez]]/CustodeVendas[[#Totals],[Dez]],"-") -> 11% | AD7: =IFERROR(CustodeVendas[[#This Row],[Anualmente]]/CustodeVendas[[#Totals],[Anualmente]],"-") -> 17%
B8: Custo 4 | D8: R$ 13 | E8: R$ 28 | F8: R$ 15 | G8: R$ 8 | H8: R$ 84 | I8: R$ 12 | J8: R$ 54 | K8: R$ 72 | L8: R$ 49 | M8: R$ 24 | N8: R$ 60 | O8: R$ 39 | P8: =SUM(CustodeVendas[[#This Row],[Jan]:[Dez]]) -> R$ 458 | Q8: 11% | R8: =IFERROR(CustodeVendas[[#This Row],[Jan]]/CustodeVendas[[#Totals],[Jan]],"-") -> 5% | S8: =IFERROR(CustodeVendas[[#This Row],[Fev]]/CustodeVendas[[#Totals],[Fev]],"-") -> 8% | T8: =IFERROR(CustodeVendas[[#This Row],[Mar]]/CustodeVendas[[#Totals],[Mar]],"-") -> 5% | U8: =IFERROR(CustodeVendas[[#This Row],[Abr]]/CustodeVendas[[#Totals],[Abr]],"-") -> 3% | V8: =IFERROR(CustodeVendas[[#This Row],[Mai]]/CustodeVendas[[#Totals],[Mai]],"-") -> 21% | W8: =IFERROR(CustodeVendas[[#This Row],[Jun]]/CustodeVendas[[#Totals],[Jun]],"-") -> 4% | X8: =IFERROR(CustodeVendas[[#This Row],[Jul]]/CustodeVendas[[#Totals],[Jul]],"-") -> 18% | Y8: =IFERROR(CustodeVendas[[#This Row],[Ago]]/CustodeVendas[[#Totals],[Ago]],"-") -> 32% | Z8: =IFERROR(CustodeVendas[[#This Row],[Set]]/CustodeVendas[[#Totals],[Set]],"-") -> 12% | AA8: =IFERROR(CustodeVendas[[#This Row],[Out]]/CustodeVendas[[#Totals],[Out]],"-") -> 9% | AB8: =IFERROR(CustodeVendas[[#This Row],[Nov]]/CustodeVendas[[#Totals],[Nov]],"-") -> 23% | AC8: =IFERROR(CustodeVendas[[#This Row],[Dez]]/CustodeVendas[[#Totals],[Dez]],"-") -> 9% | AD8: =IFERROR(CustodeVendas[[#This Row],[Anualmente]]/CustodeVendas[[#Totals],[Anualmente]],"-") -> 12%
B9: Custo 5 | D9: R$ 34 | E9: R$ 78 | F9: R$ 43 | G9: R$ 30 | H9: R$ 77 | I9: R$ 54 | J9: R$ 26 | K9: R$ 13 | L9: R$ 56 | M9: R$ 30 | N9: R$ 40 | O9: R$ 63 | P9: =SUM(CustodeVendas[[#This Row],[Jan]:[Dez]]) -> R$ 544 | Q9: 20% | R9: =IFERROR(CustodeVendas[[#This Row],[Jan]]/CustodeVendas[[#Totals],[Jan]],"-") -> 13% | S9: =IFERROR(CustodeVendas[[#This Row],[Fev]]/CustodeVendas[[#Totals],[Fev]],"-") -> 22% | T9: =IFERROR(CustodeVendas[[#This Row],[Mar]]/CustodeVendas[[#Totals],[Mar]],"-") -> 14% | U9: =IFERROR(CustodeVendas[[#This Row],[Abr]]/CustodeVendas[[#Totals],[Abr]],"-") -> 12% | V9: =IFERROR(CustodeVendas[[#This Row],[Mai]]/CustodeVendas[[#Totals],[Mai]],"-") -> 19% | W9: =IFERROR(CustodeVendas[[#This Row],[Jun]]/CustodeVendas[[#Totals],[Jun]],"-") -> 17% | X9: =IFERROR(CustodeVendas[[#This Row],[Jul]]/CustodeVendas[[#Totals],[Jul]],"-") -> 9% | Y9: =IFERROR(CustodeVendas[[#This Row],[Ago]]/CustodeVendas[[#Totals],[Ago]],"-") -> 6% | Z9: =IFERROR(CustodeVendas[[#This Row],[Set]]/CustodeVendas[[#Totals],[Set]],"-") -> 14% | AA9: =IFERROR(CustodeVendas[[#This Row],[Out]]/CustodeVendas[[#Totals],[Out]],"-") -> 11% | AB9: =IFERROR(CustodeVendas[[#This Row],[Nov]]/CustodeVendas[[#Totals],[Nov]],"-") -> 15% | AC9: =IFERROR(CustodeVendas[[#This Row],[Dez]]/CustodeVendas[[#Totals],[Dez]],"-") -> 14% | AD9: =IFERROR(CustodeVendas[[#This Row],[Anualmente]]/CustodeVendas[[#Totals],[Anualmente]],"-") -> 14%
B10: Custo 6 | D10: R$ 33 | E10: R$ 61 | F10: R$ 42 | G10: R$ 43 | H10: R$ 19 | I10: R$ 94 | J10: R$ 46 | K10: R$ 15 | L10: R$ 55 | M10: R$ 15 | N10: R$ 37 | O10: R$ 89 | P10: =SUM(CustodeVendas[[#This Row],[Jan]:[Dez]]) -> R$ 549 | Q10: 10% | R10: =IFERROR(CustodeVendas[[#This Row],[Jan]]/CustodeVendas[[#Totals],[Jan]],"-") -> 12% | S10: =IFERROR(CustodeVendas[[#This Row],[Fev]]/CustodeVendas[[#Totals],[Fev]],"-") -> 17% | T10: =IFERROR(CustodeVendas[[#This Row],[Mar]]/CustodeVendas[[#Totals],[Mar]],"-") -> 13% | U10: =IFERROR(CustodeVendas[[#This Row],[Abr]]/CustodeVendas[[#Totals],[Abr]],"-") -> 18% | V10: =IFERROR(CustodeVendas[[#This Row],[Mai]]/CustodeVendas[[#Totals],[Mai]],"-") -> 5% | W10: =IFERROR(CustodeVendas[[#This Row],[Jun]]/CustodeVendas[[#Totals],[Jun]],"-") -> 30% | X10: =IFERROR(CustodeVendas[[#This Row],[Jul]]/CustodeVendas[[#Totals],[Jul]],"-") -> 15% | Y10: =IFERROR(CustodeVendas[[#This Row],[Ago]]/CustodeVendas[[#Totals],[Ago]],"-") -> 7% | Z10: =IFERROR(CustodeVendas[[#This Row],[Set]]/CustodeVendas[[#Totals],[Set]],"-") -> 13% | AA10: =IFERROR(CustodeVendas[[#This Row],[Out]]/CustodeVendas[[#Totals],[Out]],"-") -> 5% | AB10: =IFERROR(CustodeVendas[[#This Row],[Nov]]/CustodeVendas[[#Totals],[Nov]],"-") -> 14% | AC10: =IFERROR(CustodeVendas[[#This Row],[Dez]]/CustodeVendas[[#Totals],[Dez]],"-") -> 20% | AD10: =IFERROR(CustodeVendas[[#This Row],[Anualmente]]/CustodeVendas[[#Totals],[Anualmente]],"-") -> 14%
B11: Custo 7 | D11: R$ 18 | E11: R$ 11 | F11: R$ 30 | G11: R$ 9 | H11: R$ 62 | I11: R$ 39 | J11: R$ 102 | K11: R$ 44 | L11: R$ 121 | M11: R$ 19 | N11: R$ 33 | O11: R$ 40 | P11: =SUM(CustodeVendas[[#This Row],[Jan]:[Dez]]) -> R$ 528 | Q11: 10% | R11: =IFERROR(CustodeVendas[[#This Row],[Jan]]/CustodeVendas[[#Totals],[Jan]],"-") -> 7% | S11: =IFERROR(CustodeVendas[[#This Row],[Fev]]/CustodeVendas[[#Totals],[Fev]],"-") -> 3% | T11: =IFERROR(CustodeVendas[[#This Row],[Mar]]/CustodeVendas[[#Totals],[Mar]],"-") -> 10% | U11: =IFERROR(CustodeVendas[[#This Row],[Abr]]/CustodeVendas[[#Totals],[Abr]],"-") -> 4% | V11: =IFERROR(CustodeVendas[[#This Row],[Mai]]/CustodeVendas[[#Totals],[Mai]],"-") -> 16% | W11: =IFERROR(CustodeVendas[[#This Row],[Jun]]/CustodeVendas[[#Totals],[Jun]],"-") -> 13% | X11: =IFERROR(CustodeVendas[[#This Row],[Jul]]/CustodeVendas[[#Totals],[Jul]],"-") -> 34% | Y11: =IFERROR(CustodeVendas[[#This Row],[Ago]]/CustodeVendas[[#Totals],[Ago]],"-") -> 19% | Z11: =IFERROR(CustodeVendas[[#This Row],[Set]]/CustodeVendas[[#Totals],[Set]],"-") -> 29% | AA11: =IFERROR(CustodeVendas[[#This Row],[Out]]/CustodeVendas[[#Totals],[Out]],"-") -> 7% | AB11: =IFERROR(CustodeVendas[[#This Row],[Nov]]/CustodeVendas[[#Totals],[Nov]],"-") -> 13% | AC11: =IFERROR(CustodeVendas[[#This Row],[Dez]]/CustodeVendas[[#Totals],[Dez]],"-") -> 9% | AD11: =IFERROR(CustodeVendas[[#This Row],[Anualmente]]/CustodeVendas[[#Totals],[Anualmente]],"-") -> 14%
B12: CUSTO TOTAL DE VENDAS | D12: =SUBTOTAL(109,CustodeVendas[Jan]) -> R$ 265 | E12: =SUBTOTAL(109,CustodeVendas[Fev]) -> R$ 356 | F12: =SUBTOTAL(109,CustodeVendas[Mar]) -> R$ 315 | G12: =SUBTOTAL(109,CustodeVendas[Abr]) -> R$ 241 | H12: =SUBTOTAL(109,CustodeVendas[Mai]) -> R$ 399 | I12: =SUBTOTAL(109,CustodeVendas[Jun]) -> R$ 312 | J12: =SUBTOTAL(109,CustodeVendas[Jul]) -> R$ 299 | K12: =SUBTOTAL(109,CustodeVendas[Ago]) -> R$ 226 | L12: =SUBTOTAL(109,CustodeVendas[Set]) -> R$ 414 | M12: =SUBTOTAL(109,CustodeVendas[Out]) -> R$ 274 | N12: =SUBTOTAL(109,CustodeVendas[Nov]) -> R$ 264 | O12: =SUBTOTAL(109,CustodeVendas[Dez]) -> R$ 453 | P12: =SUBTOTAL(109,CustodeVendas[Anualmente]) -> R$ 3,818 | Q12: =SUBTOTAL(109,CustodeVendas[Índice %]) -> 100% | R12: =SUBTOTAL(109,CustodeVendas[Jan %]) -> 100% | S12: =SUBTOTAL(109,CustodeVendas[Fev %]) -> 100% | T12: =SUBTOTAL(109,CustodeVendas[Mar %]) -> 100% | U12: =SUBTOTAL(109,CustodeVendas[Abr %]) -> 100% | V12: =SUBTOTAL(109,CustodeVendas[Mai %]) -> 100% | W12: =SUBTOTAL(109,CustodeVendas[Jun %]) -> 100% | X12: =SUBTOTAL(109,CustodeVendas[Jul %]) -> 100% | Y12: =SUBTOTAL(109,CustodeVendas[Ago %]) -> 100% | Z12: =SUBTOTAL(109,CustodeVendas[Set %]) -> 100% | AA12: =SUBTOTAL(109,CustodeVendas[Out %]) -> 100% | AB12: =SUBTOTAL(109,CustodeVendas[Nov %]) -> 100% | AC12: =SUBTOTAL(109,CustodeVendas[Dez %]) -> 100% | AD12: =SUBTOTAL(109,CustodeVendas[Ano %]) -> 100%
B14: Lucro Bruto | D14: =Receita[[#Totals],[Jan]]-CustodeVendas[[#Totals],[Jan]] -> R$ 359 | E14: =Receita[[#Totals],[Fev]]-CustodeVendas[[#Totals],[Fev]] -> R$ 380 | F14: =Receita[[#Totals],[Mar]]-CustodeVendas[[#Totals],[Mar]] -> R$ 505 | G14: =Receita[[#Totals],[Abr]]-CustodeVendas[[#Totals],[Abr]] -> R$ 370 | H14: =Receita[[#Totals],[Mai]]-CustodeVendas[[#Totals],[Mai]] -> R$ 413 | I14: =Receita[[#Totals],[Jun]]-CustodeVendas[[#Totals],[Jun]] -> R$ 266 | J14: =Receita[[#Totals],[Jul]]-CustodeVendas[[#Totals],[Jul]] -> R$ 298 | K14: =Receita[[#Totals],[Ago]]-CustodeVendas[[#Totals],[Ago]] -> R$ 449 | L14: =Receita[[#Totals],[Set]]-CustodeVendas[[#Totals],[Set]] -> R$ 330 | M14: =Receita[[#Totals],[Out]]-CustodeVendas[[#Totals],[Out]] -> R$ 407 | N14: =Receita[[#Totals],[Nov]]-CustodeVendas[[#Totals],[Nov]] -> R$ 475 | O14: =Receita[[#Totals],[Dez]]-CustodeVendas[[#Totals],[Dez]] -> R$ 590 | P14: =Receita[[#Totals],[Anualmente]]-CustodeVendas[[#Totals],[Anualmente]] -> R$ 4,842 | R14: =D14/$P$14 -> 7% | S14: 8% | T14: 10% | U14: 8% | V14: 9% | W14: 5% | X14: 6% | Y14: 9% | Z14: 7% | AA14: 8% | AB14: 10% | AC14: 12% | AD14: 100%

Sheet Despesas
B1: =Título_Período_Projeção -> Doze meses | AD1: =Nome_Empresa -> Nome da Empresa
B2: ='Receitas (Vendas)'!$B$2 -> PROJEÇÃO DE LUCROS E PERDAS | AB2: ANO FISCAL: | AC2: =InícioMêsAF -> JAN | AD2: =AnoInícioAF -> 2018
D3: =UPPER(TEXT(DATE(AnoInícioAF,NúmMêsAF,1),"mmm-aa")) -> JAN-18 | E3: =UPPER(TEXT(DATE(AnoInícioAF,NúmMêsAF+1,1),"mmm-aa")) -> FEV-18 | F3: =UPPER(TEXT(DATE(AnoInícioAF,NúmMêsAF+2,1),"mmm-aa")) -> MAR-18 | G3: =UPPER(TEXT(DATE(AnoInícioAF,NúmMêsAF+3,1),"mmm-aa")) -> ABR-18 | H3: =UPPER(TEXT(DATE(AnoInícioAF,NúmMêsAF+4,1),"mmm-aa")) -> MAI-18 | I3: =UPPER(TEXT(DATE(AnoInícioAF,NúmMêsAF+5,1),"mmm-aa")) -> JUN-18 | J3: =UPPER(TEXT(DATE(AnoInícioAF,NúmMêsAF+6,1),"mmm-aa")) -> JUL-18 | K3: =UPPER(TEXT(DATE(AnoInícioAF,NúmMêsAF+7,1),"mmm-aa")) -> AGO-18 | L3: =UPPER(TEXT(DATE(AnoInícioAF,NúmMêsAF+8,1),"mmm-aa")) -> SET-18 | M3: =UPPER(TEXT(DATE(AnoInícioAF,NúmMêsAF+9,1),"mmm-aa")) -> OUT-18 | N3: =UPPER(TEXT(DATE(AnoInícioAF,NúmMêsAF+10,1),"mmm-aa")) -> NOV-18 | O3: =UPPER(TEXT(DATE(AnoInícioAF,NúmMêsAF+11,1),"mmm-aa")) -> DEZ-18 | P3: ANUALMENTE | Q3: ÍND % | R3: =LEFT(D3,3)&" %" -> JAN % | S3: =LEFT(E3,3)&" %" -> FEV % | T3: MAR % | U3: ABR % | V3: MAI % | W3: JUN % | X3: JUL % | Y3: AGO % | Z3: SET % | AA3: OUT % | AB3: NOV % | AC3: DEZ % | AD3: ANO %
B4: DESPESAS | C4: TENDÊNCIA | D4: Coluna1 | E4: Fev | F4: Mar | G4: Abr | H4: Mai | I4: Jun | J4: Jul | K4: Ago | L4: Set | M4: Out | N4: Nov | O4: Dez | P4: Anualmente | Q4: Índice % | R4: Jan % | S4: Fev % | T4: Mar % | U4: Abr % | V4: Mai % | W4: Jun % | X4: Jul % | Y4: Ago % | Z4: Set % | AA4: Out % | AB4: Nov % | AC4: Dez % | AD4: Ano %
B5: Despesas com salário | D5: R$ 10 | E5: R$ 18 | F5: R$ 13 | G5: R$ 8 | H5: R$ 22 | I5: R$ 18 | J5: R$ 8 | K5: R$ 17 | L5: R$ 20 | M5: R$ 8 | N5: R$ 4 | O5: R$ 12 | P5: =SUM(tblDespesas[[#This Row],[Coluna1]:[Dez]]) -> R$ 158 | Q5: 12% | R5: =tblDespesas[[#This Row],[Coluna1]]/tblDespesas[[#Totals],[Coluna1]] -> 4% | S5: =tblDespesas[[#This Row],[Fev]]/tblDespesas[[#Totals],[Fev]] -> 9% | T5: =tblDespesas[[#This Row],[Mar]]/tblDespesas[[#Totals],[Mar]] -> 5% | U5: =tblDespesas[[#This Row],[Abr]]/tblDespesas[[#Totals],[Abr]] -> 3% | V5: =tblDespesas[[#This Row],[Mai]]/tblDespesas[[#Totals],[Mai]] -> 9% | W5: =tblDespesas[[#This Row],[Jun]]/tblDespesas[[#Totals],[Jun]] -> 7% | X5: =tblDespesas[[#This Row],[Jul]]/tblDespesas[[#Totals],[Jul]] -> 3% | Y5: =tblDespesas[[#This Row],[Ago]]/tblDespesas[[#Totals],[Ago]] -> 7% | Z5: =tblDespesas[[#This Row],[Set]]/tblDespesas[[#Totals],[Set]] -> 9% | AA5: =tblDespesas[[#This Row],[Out]]/tblDespesas[[#Totals],[Out]] -> 3% | AB5: =tblDespesas[[#This Row],[Nov]]/tblDespesas[[#Totals],[Nov]] -> 1% | AC5: =tblDespesas[[#This Row],[Dez]]/tblDespesas[[#Totals],[Dez]] -> 5% | AD5: =tblDespesas[[#This Row],[Anualmente]]/tblDespesas[[#Totals],[Anualmente]] -> 5%
B6: Descontos na folha de pagamento | D6: R$ 23 | E6: R$ 11 | F6: R$ 7 | G6: R$ 14 | H6: R$ 12 | I6: R$ 19 | J6: R$ 19 | K6: R$ 4 | L6: R$ 7 | M6: R$ 13 | N6: R$ 25 | O6: R$ 5 | P6: =SUM(tblDespesas[[#This Row],[Coluna1]:[Dez]]) -> R$ 159 | Q6: 9% | R6: =tblDespesas[[#This Row],[Coluna1]]/tblDespesas[[#Totals],[Coluna1]] -> 10% | S6: =tblDespesas[[#This Row],[Fev]]/tblDespesas[[#Totals],[Fev]] -> 5% | T6: =tblDespesas[[#This Row],[Mar]]/tblDespesas[[#Totals],[Mar]] -> 3% | U6: =tblDespesas[[#This Row],[Abr]]/tblDespesas[[#Totals],[Abr]] -> 5% | V6: =tblDespesas[[#This Row],[Mai]]/tblDespesas[[#Totals],[Mai]] -> 5% | W6: =tblDespesas[[#This Row],[Jun]]/tblDespesas[[#Totals],[Jun]] -> 7% | X6: =tblDespesas[[#This Row],[Jul]]/tblDespesas[[#Totals],[Jul]] -> 7% | Y6: =tblDespesas[[#This Row],[Ago]]/tblDespesas[[#Totals],[Ago]] -> 2% | Z6: =tblDespesas[[#This Row],[Set]]/tblDespesas[[#Totals],[Set]] -> 3% | AA6: =tblDespesas[[#This Row],[Out]]/tblDespesas[[#Totals],[Out]] -> 5% | AB6: =tblDespesas[[#This Row],[Nov]]/tblDespesas[[#Totals],[Nov]] -> 8% | AC6: =tblDespesas[[#This Row],[Dez]]/tblDespesas[[#Totals],[Dez]] -> 2% | AD6: =tblDespesas[[#This Row],[Anualmente]]/tblDespesas[[#Totals],[Anualmente]] -> 5%
B7: Serviços externos | D7: R$ 23 | E7: R$ 20 | F7: R$ 3 | G7: R$ 16 | H7: R$ 10 | I7: R$ 5 | J7: R$ 20 | K7: R$ 7 | L7: R$ 4 | M7: R$ 22 | N7: R$ 13 | O7: R$ 14 | P7: =SUM(tblDespesas[[#This Row],[Coluna1]:[Dez]]) -> R$ 157 | Q7: 2% | R7: =tblDespesas[[#This Row],[Coluna1]]/tblDespesas[[#Totals],[Coluna1]] -> 10% | S7: =tblDespesas[[#This Row],[Fev]]/tblDespesas[[#Totals],[Fev]] -> 10% | T7: =tblDespesas[[#This Row],[Mar]]/tblDespesas[[#Totals],[Mar]] -> 1% | U7: =tblDespesas[[#This Row],[Abr]]/tblDespesas[[#Totals],[Abr]] -> 6% | V7: =tblDespesas[[#This Row],[Mai]]/tblDespesas[[#Totals],[Mai]] -> 4% | W7: =tblDespesas[[#This Row],[Jun]]/tblDespesas[[#Totals],[Jun]] -> 2% | X7: =tblDespesas[[#This Row],[Jul]]/tblDespesas[[#Totals],[Jul]] -> 8% | Y7: =tblDespesas[[#This Row],[Ago]]/tblDespesas[[#Totals],[Ago]] -> 3% | Z7: =tblDespesas[[#This Row],[Set]]/tblDespesas[[#Totals],[Set]] -> 2% | AA7: =tblDespesas[[#This Row],[Out]]/tblDespesas[[#Totals],[Out]] -> 8% | AB7: =tblDespesas[[#This Row],[Nov]]/tblDespesas[[#Totals],[Nov]] -> 4% | AC7: =tblDespesas[[#This Row],[Dez]]/tblDespesas[[#Totals],[Dez]] -> 6% | AD7: =tblDespesas[[#This Row],[Anualmente]]/tblDespesas[[#Totals],[Anualmente]] -> 5%
B8: Suprimentos (escritório e operações) | D8: R$ 19 | E8: R$ 4 | F8: R$ 7 | G8: R$ 14 | H8: R$ 22 | I8: R$ 10 | J8: R$ 22 | K8: R$ 5 | L8: R$ 4 | M8: R$ 12 | N8: R$ 18 | O8: R$ 24 | P8: =SUM(tblDespesas[[#This Row],[Coluna1]:[Dez]]) -> R$ 161 | Q8: 8% | R8: =tblDespesas[[#This Row],[Coluna1]]/tblDespesas[[#Totals],[Coluna1]] -> 8% | S8: =tblDespesas[[#This Row],[Fev]]/tblDespesas[[#Totals],[Fev]] -> 2% | T8: =tblDespesas[[#This Row],[Mar]]/tblDespesas[[#Totals],[Mar]] -> 3% | U8: =tblDespesas[[#This Row],[Abr]]/tblDespesas[[#Totals],[Abr]] -> 5% | V8: =tblDespesas[[#This Row],[Mai]]/tblDespesas[[#Totals],[Mai]] -> 9% | W8: =tblDespesas[[#This Row],[Jun]]/tblDespesas[[#Totals],[Jun]] -> 4% | X8: =tblDespesas[[#This Row],[Jul]]/tblDespesas[[#Totals],[Jul]] -> 8% | Y8: =tblDespesas[[#This Row],[Ago]]/tblDespesas[[#Totals],[Ago]] -> 2% | Z8: =tblDespesas[[#This Row],[Set]]/tblDespesas[[#Totals],[Set]] -> 2% | AA8: =tblDespesas[[#This Row],[Out]]/tblDespesas[[#Totals],[Out]] -> 5% | AB8: =tblDespesas[[#This Row],[Nov]]/tblDespesas[[#Totals],[Nov]] -> 6% | AC8: =tblDespesas[[#This Row],[Dez]]/tblDespesas[[#Totals],[Dez]] -> 10% | AD8: =tblDespesas[[#This Row],[Anualmente]]/tblDespesas[[#Totals],[Anualmente]] -> 5%
B9: Reparos e manutenção | D9: R$ 11 | E9: R$ 11 | F9: R$ 17 | G9: R$ 12 | H9: R$ 2 | I9: R$ 14 | J9: R$ 12 | K9: R$ 10 | L9: R$ 18 | M9: R$ 11 | N9: R$ 23 | O9: R$ 11 | P9: =SUM(tblDespesas[[#This Row],[Coluna1]:[Dez]]) -> R$ 152 | Q9: 3% | R9: =tblDespesas[[#This Row],[Coluna1]]/tblDespesas[[#Totals],[Coluna1]] -> 5% | S9: =tblDespesas[[#This Row],[Fev]]/tblDespesas[[#Totals],[Fev]] -> 5% | T9: =tblDespesas[[#This Row],[Mar]]/tblDespesas[[#Totals],[Mar]] -> 7% | U9: =tblDespesas[[#This Row],[Abr]]/tblDespesas[[#Totals],[Abr]] -> 5% | V9: =tblDespesas[[#This Row],[Mai]]/tblDespesas[[#Totals],[Mai]] -> 1% | W9: =tblDespesas[[#This Row],[Jun]]/tblDespesas[[#Totals],[Jun]] -> 5% | X9: =tblDespesas[[#This Row],[Jul]]/tblDespesas[[#Totals],[Jul]] -> 5% | Y9: =tblDespesas[[#This Row],[Ago]]/tblDespesas[[#Totals],[Ago]] -> 4% | Z9: =tblDespesas[[#This Row],[Set]]/tblDespesas[[#Totals],[Set]] -> 8% | AA9: =tblDespesas[[#This Row],[Out]]/tblDespesas[[#Totals],[Out]] -> 4% | AB9: =tblDespesas[[#This Row],[Nov]]/tblDespesas[[#Totals],[Nov]] -> 8% | AC9: =tblDespesas[[#This Row],[Dez]]/tblDespesas[[#Totals],[Dez]] -> 5% | AD9: =tblDespesas[[#This Row],[Anualmente]]/tblDespesas[[#Totals],[Anualmente]] -> 5%
B10: Publicidade | D10: R$ 2 | E10: R$ 16 | F10: R$ 6 | G10: R$ 13 | H10: R$ 11 | I10: R$ 22 | J10: R$ 21 | K10: R$ 3 | L10: R$ 12 | M10: R$ 7 | N10: R$ 17 | O10: R$ 20 | P10: =SUM(tblDespesas[[#This Row],[Coluna1]:[Dez]]) -> R$ 150 | Q10: 15% | R10: =tblDespesas[[#This Row],[Coluna1]]/tblDespesas[[#Totals],[Coluna1]] -> 1% | S10: =tblDespesas[[#This Row],[Fev]]/tblDespesas[[#Totals],[Fev]] -> 8% | T10: =tblDespesas[[#This Row],[Mar]]/tblDespesas[[#Totals],[Mar]] -> 2% | U10: =tblDespesas[[#This Row],[Abr]]/tblDespesas[[#Totals],[Abr]] -> 5% | V10: =tblDespesas[[#This Row],[Mai]]/tblDespesas[[#Totals],[Mai]] -> 4% | W10: =tblDespesas[[#This Row],[Jun]]/tblDespesas[[#Totals],[Jun]] -> 8% | X10: =tblDespesas[[#This Row],[Jul]]/tblDespesas[[#Totals],[Jul]] -> 8% | Y10: =tblDespesas[[#This Row],[Ago]]/tblDespesas[[#Totals],[Ago]] -> 1% | Z10: =tblDespesas[[#This Row],[Set]]/tblDespesas[[#Totals],[Set]] -> 5% | AA10: =tblDespesas[[#This Row],[Out]]/tblDespesas[[#Totals],[Out]] -> 3% | AB10: =tblDespesas[[#This Row],[Nov]]/tblDespesas[[#Totals],[Nov]] -> 6% | AC10: =tblDespesas[[#This Row],[Dez]]/tblDespesas[[#Totals],[Dez]] -> 9% | AD10: =tblDespesas[[#This Row],[Anualmente]]/tblDespesas[[#Totals],[Anualmente]] -> 5%
B11: Carro, viagens e entregas | D11: R$ 8 | E11: R$ 17 | F11: R$ 11 | G11: R$ 11 | H11: R$ 21 | I11: R$ 9 | J11: R$ 20 | K11: R$ 3 | L11: R$ 14 | M11: R$ 22 | N11: R$ 16 | O11: R$ 12 | P11: =SUM(tblDespesas[[#This Row],[Coluna1]:[Dez]]) -> R$ 164 | Q11: 12% | R11: =tblDespesas[[#This Row],[Coluna1]]/tblDespesas[[#Totals],[Coluna1]] -> 3% | S11: =tblDespesas[[#This Row],[Fev]]/tblDespesas[[#Totals],[Fev]] -> 8% | T11: =tblDespesas[[#This Row],[Mar]]/tblDespesas[[#Totals],[Mar]] -> 4% | U11: =tblDespesas[[#This Row],[Abr]]/tblDespesas[[#Totals],[Abr]] -> 4% | V11: =tblDespesas[[#This Row],[Mai]]/tblDespesas[[#Totals],[Mai]] -> 8% | W11: =tblDespesas[[#This Row],[Jun]]/tblDespesas[[#Totals],[Jun]] -> 3% | X11: =tblDespesas[[#This Row],[Jul]]/tblDespesas[[#Totals],[Jul]] -> 8% | Y11: =tblDespesas[[#This Row],[Ago]]/tblDespesas[[#Totals],[Ago]] -> 1% | Z11: =tblDespesas[[#This Row],[Set]]/tblDespesas[[#Totals],[Set]] -> 6% | AA11: =tblDespesas[[#This Row],[Out]]/tblDespesas[[#Totals],[Out]] -> 8% | AB11: =tblDespesas[[#This Row],[Nov]]/tblDespesas[[#Totals],[Nov]] -> 5% | AC11: =tblDespesas[[#This Row],[Dez]]/tblDespesas[[#Totals],[Dez]] -> 5% | AD11: =tblDespesas[[#This Row],[Anualmente]]/tblDespesas[[#Totals],[Anualmente]] -> 5%
B12: Contabilidade e jurídico | D12: R$ 5 | E12: R$ 13 | F12: R$ 6 | G12: R$ 15 | H12: R$ 19 | I12: R$ 10 | J12: R$ 12 | K12: R$ 9 | L12: R$ 15 | M12: R$ 16 | N12: R$ 4 | O12: R$ 9 | P12: =SUM(tblDespesas[[#This Row],[Coluna1]:[Dez]]) -> R$ 133 | Q12: 9% | R12: =tblDespesas[[#This Row],[Coluna1]]/tblDespesas[[#Totals],[Coluna1]] -> 2% | S12: =tblDespesas[[#This Row],[Fev]]/tblDespesas[[#Totals],[Fev]] -> 6% | T12: =tblDespesas[[#This Row],[Mar]]/tblDespesas[[#Totals],[Mar]] -> 2% | U12: =tblDespesas[[#This Row],[Abr]]/tblDespesas[[#Totals],[Abr]] -> 6% | V12: =tblDespesas[[#This Row],[Mai]]/tblDespesas[[#Totals],[Mai]] -> 7% | W12: =tblDespesas[[#This Row],[Jun]]/tblDespesas[[#Totals],[Jun]] -> 4% | X12: =tblDespesas[[#This Row],[Jul]]/tblDespesas[[#Totals],[Jul]] -> 5% | Y12: =tblDespesas[[#This Row],[Ago]]/tblDespesas[[#Totals],[Ago]] -> 4% | Z12: =tblDespesas[[#This Row],[Set]]/tblDespesas[[#Totals],[Set]] -> 7% | AA12: =tblDespesas[[#This Row],[Out]]/tblDespesas[[#Totals],[Out]] -> 6% | AB12: =tblDespesas[[#This Row],[Nov]]/tblDespesas[[#Totals],[Nov]] -> 1% | AC12: =tblDespesas[[#This Row],[Dez]]/tblDespesas[[#Totals],[Dez]] -> 4% | AD12: =tblDespesas[[#This Row],[Anualmente]]/tblDespesas[[#Totals],[Anualmente]] -> 4%
B13: Aluguel | D13: R$ 8 | E13: R$ 4 | F13: R$ 23 | G13: R$ 25 | H13: R$ 10 | I13: R$ 24 | J13: R$ 22 | K13: R$ 5 | L13: R$ 12 | M13: R$ 24 | N13: R$ 24 | O13: R$ 12 | P13: =SUM(tblDespesas[[#This Row],[Coluna1]:[Dez]]) -> R$ 193 | Q13: 1% | R13: =tblDespesas[[#This Row],[Coluna1]]/tblDespesas[[#Totals],[Coluna1]] -> 3% | S13: =tblDespesas[[#This Row],[Fev]]/tblDespesas[[#Totals],[Fev]] -> 2% | T13: =tblDespesas[[#This Row],[Mar]]/tblDespesas[[#Totals],[Mar]] -> 9% | U13: =tblDespesas[[#This Row],[Abr]]/tblDespesas[[#Totals],[Abr]] -> 10% | V13: =tblDespesas[[#This Row],[Mai]]/tblDespesas[[#Totals],[Mai]] -> 4% | W13: =tblDespesas[[#This Row],[Jun]]/tblDespesas[[#Totals],[Jun]] -> 9% | X13: =tblDespesas[[#This Row],[Jul]]/tblDespesas[[#Totals],[Jul]] -> 8% | Y13: =tblDespesas[[#This Row],[Ago]]/tblDespesas[[#Totals],[Ago]] -> 2% | Z13: =tblDespesas[[#This Row],[Set]]/tblDespesas[[#Totals],[Set]] -> 5% | AA13: =tblDespesas[[#This Row],[Out]]/tblDespesas[[#Totals],[Out]] -> 9% | AB13: =tblDespesas[[#This Row],[Nov]]/tblDespesas[[#Totals],[Nov]] -> 8% | AC13: =tblDespesas[[#This Row],[Dez]]/tblDespesas[[#Totals],[Dez]] -> 5% | AD13: =tblDespesas[[#This Row],[Anualmente]]/tblDespesas[[#Totals],[Anualmente]] -> 6%
B14: Telefone | D14: R$ 25 | E14: R$ 2 | F14: R$ 12 | G14: R$ 25 | H14: R$ 10 | I14: R$ 24 | J14: R$ 3 | K14: R$ 20 | L14: R$ 3 | M14: R$ 9 | N14: R$ 20 | O14: R$ 18 | P14: =SUM(tblDespesas[[#This Row],[Coluna1]:[Dez]]) -> R$ 171 | Q14: 1% | R14: =tblDespesas[[#This Row],[Coluna1]]/tblDespesas[[#Totals],[Coluna1]] -> 11% | S14: =tblDespesas[[#This Row],[Fev]]/tblDespesas[[#Totals],[Fev]] -> 1% | T14: =tblDespesas[[#This Row],[Mar]]/tblDespesas[[#Totals],[Mar]] -> 5% | U14: =tblDespesas[[#This Row],[Abr]]/tblDespesas[[#Totals],[Abr]] -> 10% | V14: =tblDespesas[[#This Row],[Mai]]/tblDespesas[[#Totals],[Mai]] -> 4% | W14: =tblDespesas[[#This Row],[Jun]]/tblDespesas[[#Totals],[Jun]] -> 9% | X14: =tblDespesas[[#This Row],[Jul]]/tblDespesas[[#Totals],[Jul]] -> 1% | Y14: =tblDespesas[[#This Row],[Ago]]/tblDespesas[[#Totals],[Ago]] -> 9% | Z14: =tblDespesas[[#This Row],[Set]]/tblDespesas[[#Totals],[Set]] -> 1% | AA14: =tblDespesas[[#This Row],[Out]]/tblDespesas[[#Totals],[Out]] -> 3% | AB14: =tblDespesas[[#This Row],[Nov]]/tblDespesas[[#Totals],[Nov]] -> 7% | AC14: =tblDespesas[[#This Row],[Dez]]/tblDespesas[[#Totals],[Dez]] -> 8% | AD14: =tblDespesas[[#This Row],[Anualmente]]/tblDespesas[[#Totals],[Anualmente]] -> 6%
B15: Utilitários | D15: R$ 16 | E15: R$ 19 | F15: R$ 9 | G15: R$ 16 | H15: R$ 13 | I15: R$ 2 | J15: R$ 4 | K15: R$ 24 | L15: R$ 16 | M15: R$ 22 | N15: R$ 7 | O15: R$ 18 | P15: =SUM(tblDespesas[[#This Row],[Coluna1]:[Dez]]) -> R$ 166 | Q15: 1% | R15: =tblDespesas[[#This Row],[Coluna1]]/tblDespesas[[#Totals],[Coluna1]] -> 7% | S15: =tblDespesas[[#This Row],[Fev]]/tblDespesas[[#Totals],[Fev]] -> 9% | T15: =tblDespesas[[#This Row],[Mar]]/tblDespesas[[#Totals],[Mar]] -> 4% | U15: =tblDespesas[[#This Row],[Abr]]/tblDespesas[[#Totals],[Abr]] -> 6% | V15: =tblDespesas[[#This Row],[Mai]]/tblDespesas[[#Totals],[Mai]] -> 5% | W15: =tblDespesas[[#This Row],[Jun]]/tblDespesas[[#Totals],[Jun]] -> 1% | X15: =tblDespesas[[#This Row],[Jul]]/tblDespesas[[#Totals],[Jul]] -> 2% | Y15: =tblDespesas[[#This Row],[Ago]]/tblDespesas[[#Totals],[Ago]] -> 10% | Z15: =tblDespesas[[#This Row],[Set]]/tblDespesas[[#Totals],[Set]] -> 7% | AA15: =tblDespesas[[#This Row],[Out]]/tblDespesas[[#Totals],[Out]] -> 8% | AB15: =tblDespesas[[#This Row],[Nov]]/tblDespesas[[#Totals],[Nov]] -> 2% | AC15: =tblDespesas[[#This Row],[Dez]]/tblDespesas[[#Totals],[Dez]] -> 8% | AD15: =tblDespesas[[#This Row],[Anualmente]]/tblDespesas[[#Totals],[Anualmente]] -> 6%
B16: Seguro | D16: R$ 12 | E16: R$ 9 | F16: R$ 16 | G16: R$ 19 | H16: R$ 25 | I16: R$ 17 | J16: R$ 20 | K16: R$ 14 | L16: R$ 5 | M16: R$ 14 | N16: R$ 5 | O16: R$ 2 | P16: =SUM(tblDespesas[[#This Row],[Coluna1]:[Dez]]) -> R$ 158 | Q16: 1% | R16: =tblDespesas[[#This Row],[Coluna1]]/tblDespesas[[#Totals],[Coluna1]] -> 5% | S16: =tblDespesas[[#This Row],[Fev]]/tblDespesas[[#Totals],[Fev]] -> 4% | T16: =tblDespesas[[#This Row],[Mar]]/tblDespesas[[#Totals],[Mar]] -> 6% | U16: =tblDespesas[[#This Row],[Abr]]/tblDespesas[[#Totals],[Abr]] -> 7% | V16: =tblDespesas[[#This Row],[Mai]]/tblDespesas[[#Totals],[Mai]] -> 10% | W16: =tblDespesas[[#This Row],[Jun]]/tblDespesas[[#Totals],[Jun]] -> 6% | X16: =tblDespesas[[#This Row],[Jul]]/tblDespesas[[#Totals],[Jul]] -> 8% | Y16: =tblDespesas[[#This Row],[Ago]]/tblDespesas[[#Totals],[Ago]] -> 6% | Z16: =tblDespesas[[#This Row],[Set]]/tblDespesas[[#Totals],[Set]] -> 2% | AA16: =tblDespesas[[#This Row],[Out]]/tblDespesas[[#Totals],[Out]] -> 5% | AB16: =tblDespesas[[#This Row],[Nov]]/tblDespesas[[#Totals],[Nov]] -> 2% | AC16: =tblDespesas[[#This Row],[Dez]]/tblDespesas[[#Totals],[Dez]] -> 1% | AD16: =tblDespesas[[#This Row],[Anualmente]]/tblDespesas[[#Totals],[Anualmente]] -> 5%
B17: Impostos (imóveis, etc.) | D17: R$ 16 | E17: R$ 13 | F17: R$ 10 | G17: R$ 7 | H17: R$ 13 | I17: R$ 3 | J17: R$ 13 | K17: R$ 17 | L17: R$ 9 | M17: R$ 4 | N17: R$ 22 | O17: R$ 18 | P17: =SUM(tblDespesas[[#This Row],[Coluna1]:[Dez]]) -> R$ 145 | Q17: 14% | R17: =tblDespesas[[#This Row],[Coluna1]]/tblDespesas[[#Totals],[Coluna1]] -> 7% | S17: =tblDespesas[[#This Row],[Fev]]/tblDespesas[[#Totals],[Fev]] -> 6% | T17: =tblDespesas[[#This Row],[Mar]]/tblDespesas[[#Totals],[Mar]] -> 4% | U17: =tblDespesas[[#This Row],[Abr]]/tblDespesas[[#Totals],[Abr]] -> 3% | V17: =tblDespesas[[#This Row],[Mai]]/tblDespesas[[#Totals],[Mai]] -> 5% | W17: =tblDespesas[[#This Row],[Jun]]/tblDespesas[[#Totals],[Jun]] -> 1% | X17: =tblDespesas[[#This Row],[Jul]]/tblDespesas[[#Totals],[Jul]] -> 5% | Y17: =tblDespesas[[#This Row],[Ago]]/tblDespesas[[#Totals],[Ago]] -> 7% | Z17: =tblDespesas[[#This Row],[Set]]/tblDespesas[[#Totals],[Set]] -> 4% | AA17: =tblDespesas[[#This Row],[Out]]/tblDespesas[[#Totals],[Out]] -> 2% | AB17: =tblDespesas[[#This Row],[Nov]]/tblDespesas[[#Totals],[Nov]] -> 7% | AC17: =tblDespesas[[#This Row],[Dez]]/tblDespesas[[#Totals],[Dez]] -> 8% | AD17: =tblDespesas[[#This Row],[Anualmente]]/tblDespesas[[#Totals],[Anualmente]] -> 5%
B18: Juros | D18: R$ 3 | E18: R$ 2 | F18: R$ 19 | G18: R$ 21 | H18: R$ 13 | I18: R$ 9 | J18: R$ 7 | K18: R$ 13 | L18: R$ 3 | M18: R$ 6 | N18: R$ 10 | O18: R$ 13 | P18: =SUM(tblDespesas[[#This Row],[Coluna1]:[Dez]]) -> R$ 119 | Q18: 6% | R18: =tblDespesas[[#This Row],[Coluna1]]/tblDespesas[[#Totals],[Coluna1]] -> 1% | S18: =tblDespesas[[#This Row],[Fev]]/tblDespesas[[#Totals],[Fev]] -> 1% | T18: =tblDespesas[[#This Row],[Mar]]/tblDespesas[[#Totals],[Mar]] -> 8% | U18: =tblDespesas[[#This Row],[Abr]]/tblDespesas[[#Totals],[Abr]] -> 8% | V18: =tblDespesas[[#This Row],[Mai]]/tblDespesas[[#Totals],[Mai]] -> 5% | W18: =tblDespesas[[#This Row],[Jun]]/tblDespesas[[#Totals],[Jun]] -> 3% | X18: =tblDespesas[[#This Row],[Jul]]/tblDespesas[[#Totals],[Jul]] -> 3% | Y18: =tblDespesas[[#This Row],[Ago]]/tblDespesas[[#Totals],[Ago]] -> 6% | Z18: =tblDespesas[[#This Row],[Set]]/tblDespesas[[#Totals],[Set]] -> 1% | AA18: =tblDespesas[[#This Row],[Out]]/tblDespesas[[#Totals],[Out]] -> 2% | AB18: =tblDespesas[[#This Row],[Nov]]/tblDespesas[[#Totals],[Nov]] -> 3% | AC18: =tblDespesas[[#This Row],[Dez]]/tblDespesas[[#Totals],[Dez]] -> 6% | AD18: =tblDespesas[[#This Row],[Anualmente]]/tblDespesas[[#Totals],[Anualmente]] -> 4%
B19: Depreciação | D19: R$ 8 | E19: R$ 7 | F19: R$ 6 | G19: R$ 7 | H19: R$ 7 | I19: R$ 6 | J19: R$ 15 | K19: R$ 23 | L19: R$ 21 | M19: R$ 16 | N19: R$ 19 | O19: R$ 7 | P19: =SUM(tblDespesas[[#This Row],[Coluna1]:[Dez]]) -> R$ 142 | Q19: 1% | R19: =tblDespesas[[#This Row],[Coluna1]]/tblDespesas[[#Totals],[Coluna1]] -> 3% | S19: =tblDespesas[[#This Row],[Fev]]/tblDespesas[[#Totals],[Fev]] -> 3% | T19: =tblDespesas[[#This Row],[Mar]]/tblDespesas[[#Totals],[Mar]] -> 2% | U19: =tblDespesas[[#This Row],[Abr]]/tblDespesas[[#Totals],[Abr]] -> 3% | V19: =tblDespesas[[#This Row],[Mai]]/tblDespesas[[#Totals],[Mai]] -> 3% | W19: =tblDespesas[[#This Row],[Jun]]/tblDespesas[[#Totals],[Jun]] -> 2% | X19: =tblDespesas[[#This Row],[Jul]]/tblDespesas[[#Totals],[Jul]] -> 6% | Y19: =tblDespesas[[#This Row],[Ago]]/tblDespesas[[#Totals],[Ago]] -> 10% | Z19: =tblDespesas[[#This Row],[Set]]/tblDespesas[[#Totals],[Set]] -> 9% | AA19: =tblDespesas[[#This Row],[Out]]/tblDespesas[[#Totals],[Out]] -> 6% | AB19: =tblDespesas[[#This Row],[Nov]]/tblDespesas[[#Totals],[Nov]] -> 6% | AC19: =tblDespesas[[#This Row],[Dez]]/tblDespesas[[#Totals],[Dez]] -> 3% | AD19: =tblDespesas[[#This Row],[Anualmente]]/tblDespesas[[#Totals],[Anualmente]] -> 5%
B20: Outras despesas (especificar) | D20: R$ 14 | E20: R$ 4 | F20: R$ 24 | G20: R$ 6 | H20: R$ 20 | I20: R$ 14 | J20: R$ 21 | K20: R$ 20 | L20: R$ 22 | M20: R$ 3 | N20: R$ 14 | O20: R$ 6 | P20: =SUM(tblDespesas[[#This Row],[Coluna1]:[Dez]]) -> R$ 168 | Q20: 1% | R20: =tblDespesas[[#This Row],[Coluna1]]/tblDespesas[[#Totals],[Coluna1]] -> 6% | S20: =tblDespesas[[#This Row],[Fev]]/tblDespesas[[#Totals],[Fev]] -> 2% | T20: =tblDespesas[[#This Row],[Mar]]/tblDespesas[[#Totals],[Mar]] -> 10% | U20: =tblDespesas[[#This Row],[Abr]]/tblDespesas[[#Totals],[Abr]] -> 2% | V20: =tblDespesas[[#This Row],[Mai]]/tblDespesas[[#Totals],[Mai]] -> 8% | W20: =tblDespesas[[#This Row],[Jun]]/tblDespesas[[#Totals],[Jun]] -> 5% | X20: =tblDespesas[[#This Row],[Jul]]/tblDespesas[[#Totals],[Jul]] -> 8% | Y20: =tblDespesas[[#This Row],[Ago]]/tblDespesas[[#Totals],[Ago]] -> 9% | Z20: =tblDespesas[[#This Row],[Set]]/tblDespesas[[#Totals],[Set]] -> 10% | AA20: =tblDespesas[[#This Row],[Out]]/tblDespesas[[#Totals],[Out]] -> 1% | AB20: =tblDespesas[[#This Row],[Nov]]/tblDespesas[[#Totals],[Nov]] -> 5% | AC20: =tblDespesas[[#This Row],[Dez]]/tblDespesas[[#Totals],[Dez]] -> 3% | AD20: =tblDespesas[[#This Row],[Anualmente]]/tblDespesas[[#Totals],[Anualmente]] -> 6%
B21: Outras despesas (especificar) | D21: R$ 14 | E21: R$ 7 | F21: R$ 24 | G21: R$ 10 | H21: R$ 7 | I21: R$ 24 | J21: R$ 2 | K21: R$ 11 | L21: R$ 21 | M21: R$ 19 | N21: R$ 19 | O21: R$ 20 | P21: =SUM(tblDespesas[[#This Row],[Coluna1]:[Dez]]) -> R$ 178 | Q21: 1% | R21: =tblDespesas[[#This Row],[Coluna1]]/tblDespesas[[#Totals],[Coluna1]] -> 6% | S21: =tblDespesas[[#This Row],[Fev]]/tblDespesas[[#Totals],[Fev]] -> 3% | T21: =tblDespesas[[#This Row],[Mar]]/tblDespesas[[#Totals],[Mar]] -> 10% | U21: =tblDespesas[[#This Row],[Abr]]/tblDespesas[[#Totals],[Abr]] -> 4% | V21: =tblDespesas[[#This Row],[Mai]]/tblDespesas[[#Totals],[Mai]] -> 3% | W21: =tblDespesas[[#This Row],[Jun]]/tblDespesas[[#Totals],[Jun]] -> 9% | X21: =tblDespesas[[#This Row],[Jul]]/tblDespesas[[#Totals],[Jul]] -> 1% | Y21: =tblDespesas[[#This Row],[Ago]]/tblDespesas[[#Totals],[Ago]] -> 5% | Z21: =tblDespesas[[#This Row],[Set]]/tblDespesas[[#Totals],[Set]] -> 9% | AA21: =tblDespesas[[#This Row],[Out]]/tblDespesas[[#Totals],[Out]] -> 7% | AB21: =tblDespesas[[#This Row],[Nov]]/tblDespesas[[#Totals],[Nov]] -> 6% | AC21: =tblDespesas[[#This Row],[Dez]]/tblDespesas[[#Totals],[Dez]] -> 9% | AD21: =tblDespesas[[#This Row],[Anualmente]]/tblDespesas[[#Totals],[Anualmente]] -> 6%
B22: Outras despesas (especificar) | D22: R$ 11 | E22: R$ 8 | F22: R$ 25 | G22: R$ 11 | H22: R$ 9 | I22: R$ 24 | J22: R$ 13 | K22: R$ 14 | L22: R$ 19 | M22: R$ 24 | N22: R$ 15 | O22: R$ 7 | P22: =SUM(tblDespesas[[#This Row],[Coluna1]:[Dez]]) -> R$ 180 | Q22: 1% | R22: =tblDespesas[[#This Row],[Coluna1]]/tblDespesas[[#Totals],[Coluna1]] -> 5% | S22: =tblDespesas[[#This Row],[Fev]]/tblDespesas[[#Totals],[Fev]] -> 4% | T22: =tblDespesas[[#This Row],[Mar]]/tblDespesas[[#Totals],[Mar]] -> 10% | U22: =tblDespesas[[#This Row],[Abr]]/tblDespesas[[#Totals],[Abr]] -> 4% | V22: =tblDespesas[[#This Row],[Mai]]/tblDespesas[[#Totals],[Mai]] -> 4% | W22: =tblDespesas[[#This Row],[Jun]]/tblDespesas[[#Totals],[Jun]] -> 9% | X22: =tblDespesas[[#This Row],[Jul]]/tblDespesas[[#Totals],[Jul]] -> 5% | Y22: =tblDespesas[[#This Row],[Ago]]/tblDespesas[[#Totals],[Ago]] -> 6% | Z22: =tblDespesas[[#This Row],[Set]]/tblDespesas[[#Totals],[Set]] -> 8% | AA22: =tblDespesas[[#This Row],[Out]]/tblDespesas[[#Totals],[Out]] -> 9% | AB22: =tblDespesas[[#This Row],[Nov]]/tblDespesas[[#Totals],[Nov]] -> 5% | AC22: =tblDespesas[[#This Row],[Dez]]/tblDespesas[[#Totals],[Dez]] -> 3% | AD22: =tblDespesas[[#This Row],[Anualmente]]/tblDespesas[[#Totals],[Anualmente]] -> 6%
B23: Diversos (não especificado) | D23: R$ 8 | E23: R$ 20 | F23: R$ 11 | G23: R$ 11 | H23: R$ 11 | I23: R$ 20 | J23: R$ 12 | K23: R$ 16 | L23: R$ 5 | M23: R$ 7 | N23: R$ 21 | O23: R$ 3 | P23: =SUM(tblDespesas[[#This Row],[Coluna1]:[Dez]]) -> R$ 145 | Q23: 2% | R23: =tblDespesas[[#This Row],[Coluna1]]/tblDespesas[[#Totals],[Coluna1]] -> 3% | S23: =tblDespesas[[#This Row],[Fev]]/tblDespesas[[#Totals],[Fev]] -> 10% | T23: =tblDespesas[[#This Row],[Mar]]/tblDespesas[[#Totals],[Mar]] -> 4% | U23: =tblDespesas[[#This Row],[Abr]]/tblDespesas[[#Totals],[Abr]] -> 4% | V23: =tblDespesas[[#This Row],[Mai]]/tblDespesas[[#Totals],[Mai]] -> 4% | W23: =tblDespesas[[#This Row],[Jun]]/tblDespesas[[#Totals],[Jun]] -> 7% | X23: =tblDespesas[[#This Row],[Jul]]/tblDespesas[[#Totals],[Jul]] -> 5% | Y23: =tblDespesas[[#This Row],[Ago]]/tblDespesas[[#Totals],[Ago]] -> 7% | Z23: =tblDespesas[[#This Row],[Set]]/tblDespesas[[#Totals],[Set]] -> 2% | AA23: =tblDespesas[[#This Row],[Out]]/tblDespesas[[#Totals],[Out]] -> 3% | AB23: =tblDespesas[[#This Row],[Nov]]/tblDespesas[[#Totals],[Nov]] -> 7% | AC23: =tblDespesas[[#This Row],[Dez]]/tblDespesas[[#Totals],[Dez]] -> 1% | AD23: =tblDespesas[[#This Row],[Anualmente]]/tblDespesas[[#Totals],[Anualmente]] -> 5%
B24: DESPESAS TOTAIS | D24: =SUBTOTAL(109,tblDespesas[Coluna1]) -> R$ 236 | E24: =SUBTOTAL(109,tblDespesas[Fev]) -> R$ 205 | F24: =SUBTOTAL(109,tblDespesas[Mar]) -> R$ 249 | G24: =SUBTOTAL(109,tblDespesas[Abr]) -> R$ 261 | H24: =SUBTOTAL(109,tblDespesas[Mai]) -> R$ 257 | I24: =SUBTOTAL(109,tblDespesas[Jun]) -> R$ 274 | J24: =SUBTOTAL(109,tblDespesas[Jul]) -> R$ 266 | K24: =SUBTOTAL(109,tblDespesas[Ago]) -> R$ 235 | L24: =SUBTOTAL(109,tblDespesas[Set]) -> R$ 230 | M24: =SUBTOTAL(109,tblDespesas[Out]) -> R$ 259 | N24: =SUBTOTAL(109,tblDespesas[Nov]) -> R$ 296 | O24: =SUBTOTAL(109,tblDespesas[Dez]) -> R$ 231 | P24: =SUBTOTAL(109,tblDespesas[Anualmente]) -> R$ 2,999 | Q24: =SUBTOTAL(109,tblDespesas[Índice %]) -> 100% | R24: =SUBTOTAL(109,tblDespesas[Jan %]) -> 100% | S24: =SUBTOTAL(109,tblDespesas[Fev %]) -> 100% | T24: =SUBTOTAL(109,tblDespesas[Mar %]) -> 100% | U24: =SUBTOTAL(109,tblDespesas[Abr %]) -> 100% | V24: =SUBTOTAL(109,tblDespesas[Mai %]) -> 100% | W24: =SUBTOTAL(109,tblDespesas[Jun %]) -> 100% | X24: =SUBTOTAL(109,tblDespesas[Jul %]) -> 100% | Y24: =SUBTOTAL(109,tblDespesas[Ago %]) -> 100% | Z24: =SUBTOTAL(109,tblDespesas[Set %]) -> 100% | AA24: =SUBTOTAL(109,tblDespesas[Out %]) -> 100% | AB24: =SUBTOTAL(109,tblDespesas[Nov %]) -> 100% | AC24: =SUBTOTAL(109,tblDespesas[Dez %]) -> 100% | AD24: =SUBTOTAL(109,tblDespesas[Ano %]) -> 100%
B26: Lucro Líquido | D26: ='Custo de vendas'!$D$14-tblDespesas[[#Totals],[Coluna1]] -> R$ 123 | E26: ='Custo de vendas'!$D$14-tblDespesas[[#Totals],[Fev]] -> R$ 154 | F26: ='Custo de vendas'!$D$14-tblDespesas[[#Totals],[Mar]] -> R$ 110 | G26: ='Custo de vendas'!$D$14-tblDespesas[[#Totals],[Abr]] -> R$ 98 | H26: ='Custo de vendas'!$D$14-tblDespesas[[#Totals],[Mai]] -> R$ 102 | I26: ='Custo de vendas'!$D$14-tblDespesas[[#Totals],[Jun]] -> R$ 85 | J26: ='Custo de vendas'!$D$14-tblDespesas[[#Totals],[Jul]] -> R$ 93 | K26: ='Custo de vendas'!$D$14-tblDespesas[[#Totals],[Ago]] -> R$ 124 | L26: ='Custo de vendas'!$D$14-tblDespesas[[#Totals],[Set]] -> R$ 129 | M26: ='Custo de vendas'!$D$14-tblDespesas[[#Totals],[Out]] -> R$ 100 | N26: ='Custo de vendas'!$D$14-tblDespesas[[#Totals],[Nov]] -> R$ 63 | O26: ='Custo de vendas'!$D$14-tblDespesas[[#Totals],[Dez]] -> R$ 128 | P26: =SUM(D26:O26) -> R$ 1,309 | R26: =D26/$P$26 -> 9% | S26: =E26/$P$26 -> 12% | T26: 8% | U26: 7% | V26: 8% | W26: 6% | X26: 7% | Y26: 9% | Z26: 10% | AA26: 8% | AB26: 5% | AC26: 10% | AD26: 100%
